bitfinex-derivatives/quotes_ETHF0:USTF0_20250404
["timestamp","ask_amount","ask_price","bid_price","bid_amount"]
[1743804736650,4.64259,1821.2,1821.1,1.4823]
[1743804736948,6.75049,1821.2,1821.1,1.4823]
[1743804737150,6.75049,1821.2,1821.1,3.37856541]
[1743804737656,6.75049,1821.2,1821.1,4.09732208]
[1743804738348,5.34719,1821.2,1821.1,4.09732208]
[1743804738559,4.30638,1821.3,1821.2,1.09859]
[1743804738758,1.09849,1821.4,1821.3,1.09853]
[1743804738948,4.30626,1821.5,1821.4,1.09847]
[1743804739146,4.30626,1821.5,1821.4,1.89587392]
[1743804739348,4.30626,1821.5,1821.4,3.43347392]
[1743804739848,4.30626,1821.5,1821.4,4.15223059]
[1743804740449,4.30626,1821.5,1821.4,3.35482667]
[1743804740655,4.30626,1821.5,1821.4,4.15235568]
[1743804741267,1.09846,1821.5,1821.4,4.15235568]
[1743804742754,1.0984,1821.6,1821.5,1.09838]
[1743804742958,1.0984,1821.6,1821.5,4.14216568]
[1743804743852,7.84913,1821.7,1821.6,1.09835]
[1743804744051,4.64133,1821.7,1821.6,4.73053568]
[1743804744251,4.64133,1821.7,1821.6,4.73111396]
[1743804744455,1.09833,1821.7,1821.6,4.73111396]
[1743804745256,1.09833,1821.7,1821.6,4.01235729]
[1743804746057,1.09833,1821.7,1821.6,4.01207122]
[1743804747259,4.30613,1821.7,1821.6,3.21425]
[1743804747558,5.71563,1821.7,1821.6,3.21425]
[1743804747759,5.71563,1821.7,1821.6,4.01199244]
[1743804747961,5.71563,1821.7,1821.6,4.01195794]
[1743804748459,5.71563,1821.7,1821.6,3.21425]
[1743804753863,5.71563,1821.7,1821.6,1.3976]
[1743804754165,1.09835,1821.6,1821.5,1.09836]
[1743804754466,1.09841,1821.5,1821.4,2.51262]
[1743804754667,1.85221,1821.5,1821.4,3.31003014]
[1743804754964,1.85221,1821.5,1821.4,4.02876911]
[1743804755364,1.85221,1821.5,1821.4,4.02881579]
[1743804759566,1.85221,1821.5,1821.4,4.02864702]
[1743804759768,1.85221,1821.5,1821.4,1.51602702]
[1743804759955,6.79171,1821.5,1821.4,1.51614065]
[1743804760264,6.79171,1821.5,1821.4,0.71873897]
[1743804760659,4.64041,1821.5,1821.4,1.81720897]
[1743804760858,4.64041,1821.5,1821.4,1.89582759]
[1743804761059,4.64041,1821.5,1821.4,3.29412759]
[1743804761870,4.64041,1821.5,1821.4,4.01280152]
[1743804763068,1.09841,1821.5,1821.4,4.01280152]
[1743804764573,1.09841,1821.5,1821.4,4.0128194]
[1743804766476,1.09841,1821.5,1821.4,4.01295437]
[1743804768275,1.09841,1821.5,1821.4,4.01350028]
[1743804769679,4.3062,1821.6,1821.5,1.09841]
[1743804769880,5.7232,1821.6,1821.5,3.29956635]
[1743804770671,5.7232,1821.6,1821.5,4.75094028]
[1743804771972,5.7232,1821.6,1821.5,4.75095004]
[1743804773474,4.3062,1821.6,1821.5,4.75095004]
[1743804773680,4.3062,1821.6,1821.5,4.01825004]
[1743804773881,6.4796,1821.6,1821.5,4.01823898]
[1743804774887,6.4796,1821.6,1821.5,0.71867393]
[1743804775376,8.9796,1821.6,1821.5,0.71867393]
[1743804775678,1.09847,1821.4,1821.3,1.09849]
[1743804775880,7.84827,1821.4,1821.3,1.89685021]
[1743804776376,8.61317,1821.4,1821.3,2.61635277]
[1743804777180,8.61317,1821.4,1821.3,1.89685021]
[1743804777380,8.61317,1821.4,1821.3,0.79836021]
[1743804778580,1.09871,1821.0,1820.9,0.00824605]
[1743804778795,1.09871,1821.0,1820.9,1.52626586]
[1743804779085,1.09871,1821.0,1820.9,2.62503586]
[1743804779376,1.79651,1821.0,1820.9,2.62463057]
[1743804779878,1.79651,1821.0,1820.9,3.36563057]
[1743804780978,0.6978,1821.0,1820.9,3.36563057]
[1743804781278,1.79651,1821.0,1820.9,3.36563057]
[1743804781577,1.79651,1821.0,1820.9,4.09933057]
[1743804782081,1.79651,1821.0,1820.9,3.30133761]
[1743804782274,1.79651,1821.0,1820.9,3.00032483]
[1743804782482,1.79651,1821.0,1820.9,2.26662483]
[1743804782672,3.27561,1821.0,1820.9,2.26662483]
[1743804782871,4.00721,1821.0,1820.9,2.26662483]
[1743804783276,4.00721,1821.0,1820.9,3.01742483]
[1743804783477,4.00721,1821.0,1820.9,2.29780327]
[1743804784374,4.00721,1821.0,1820.9,2.29742148]
[1743804784787,4.00721,1821.0,1820.9,1.50004605]
[1743804785984,4.00721,1821.0,1820.9,0.00824605]
[1743804786578,4.00721,1821.0,1820.9,1.10701605]
[1743804787582,4.00721,1821.0,1820.9,0.00824605]
[1743804788886,6.50721,1821.0,1820.9,1e-08]
[1743804789881,4.00721,1821.0,1820.9,1e-08]
[1743804790188,6.50721,1821.0,1820.9,1e-08]
[1743804793390,5.33951,1821.0,1820.9,1.09877001]
[1743804793593,5.33951,1821.0,1820.9,1e-08]
[1743804793892,5.33951,1821.0,1820.9,0.73130001]
[1743804794095,5.33951,1821.0,1820.9,2.24870001]
[1743804795794,4.31474604,1821.1,1821.0,1.09871]
[1743804795994,4.31474604,1821.1,1821.0,2.59651]
[1743804796788,4.31474604,1821.1,1821.0,1.4978]
[1743804797894,5.04244604,1821.1,1821.0,1.4978]
[1743804798692,1.09871,1821.0,1820.9,0.73130001]
[1743804798883,2.57641,1821.0,1820.9,0.73130001]
[1743804799088,2.57641,1821.0,1820.9,2.12300001]
[1743804799493,2.57641,1821.0,1820.9,3.22177001]
[1743804799689,2.57641,1821.0,1820.9,2.12300001]
[1743804800193,2.57641,1821.0,1820.9,3.22177001]
[1743804800391,2.57641,1821.0,1820.9,2.12300001]
[1743804801793,1.09871,1821.0,1820.9,2.12300001]
[1743804801994,4.64071,1821.0,1820.9,3.22177001]
[1743804802194,4.64071,1821.0,1820.9,4.01836269]
[1743804802491,4.64071,1821.0,1820.9,3.63777358]
[1743804803283,4.64071,1821.0,1820.9,0.7181809]
[1743804803593,1.09904,1820.6,1820.5,4.03388]
[1743804803793,4.64104,1820.6,1820.5,4.82735843]
[1743804805789,3.542,1820.6,1820.5,4.82735843]
[1743804806191,4.64095,1820.6,1820.5,4.82735843]
[1743804808186,3.542,1820.6,1820.5,4.82735843]
[1743804808396,4.64095,1820.6,1820.5,4.82735843]
[1743804814105,3.542,1820.6,1820.5,4.82735843]
[1743804815198,4.64095,1820.6,1820.5,4.82735843]
[1743804815600,4.64095,1820.6,1820.5,5.54155396]
[1743804815806,4.64095,1820.6,1820.5,5.5425953]
[1743804817519,5.33995,1820.6,1820.5,5.5425953]
[1743804817713,4.241,1820.6,1820.5,5.5425953]
[1743804817913,5.33995,1820.6,1820.5,5.5425953]
[1743804818114,4.241,1820.6,1820.5,5.5425953]
[1743804818818,5.33995,1820.6,1820.5,5.5425953]
[1743804819415,5.33995,1820.6,1820.5,5.54267262]
[1743804820216,5.33995,1820.6,1820.5,1.50879262]
[1743804820422,9.33675,1820.6,1820.5,0.71419553]
[1743804820925,1.09901,1820.5,1820.4,0.00824605]
[1743804821222,6.55881,1820.5,1820.4,0.00824605]
[1743804821726,9.05881,1820.5,1820.4,0.00824605]
[1743804829129,6.55881,1820.5,1820.4,0.00824605]
[1743804832224,1.09919,1820.2,1820.1,0.7565]
[1743804832425,4.64219,1820.2,1820.1,0.79413755]
[1743804832626,1.09925,1820.1,1820.0,2.156]
[1743804832931,1.09937,1819.9,1819.8,1.09941]
[1743804833224,1.09936,1820.0,1819.9,1.09933]
[1743804833429,1.10760605,1820.0,1819.9,2.60760225]
[1743804834831,1.10760605,1820.0,1819.9,1.89365161]
[1743804836129,1.10760605,1820.0,1819.9,2.60706062]
[1743804840731,0.00824605,1820.0,1819.9,5.10706062]
[1743804840930,1.09917,1820.3,1820.2,1.09916]
[1743804841129,1.09917,1820.3,1820.2,1.89309867]
[1743804841329,1.09917,1820.3,1820.2,2.60682783]
[1743804842437,1.09917,1820.3,1820.2,2.60680716]
[1743804842933,1.09917,1820.3,1820.2,2.6069105]
[1743804844340,0.00824604,1820.4,1820.3,1.09913]
[1743804844539,0.00824604,1820.4,1820.3,5.5299805]
[1743804845338,1.10731604,1820.4,1820.3,5.5299805]
[1743804845638,0.00824604,1820.4,1820.3,5.5299805]
[1743804848537,0.00824604,1820.4,1820.3,5.53001211]
[1743804848736,1.10731604,1820.4,1820.3,5.53001211]
[1743804849732,0.00824604,1820.4,1820.3,5.53001211]
[1743804852142,0.00824604,1820.4,1820.3,5.52981871]
[1743804853545,1.10731604,1820.4,1820.3,5.52981871]
[1743804853946,1.10731604,1820.4,1820.3,5.52966018]
[1743804854335,0.00824604,1820.4,1820.3,5.52966018]
[1743804855745,0.00824604,1820.4,1820.3,5.52962323]
[1743804857553,0.00824604,1820.4,1820.3,4.73595916]
[1743804857749,0.00824604,1820.4,1820.3,5.52942117]
[1743804858748,0.00824604,1820.4,1820.3,5.52940416]
[1743804863249,1.10731604,1820.4,1820.3,5.52941491]
[1743804863545,0.00824604,1820.4,1820.3,4.82121491]
[1743804863848,0.76204604,1820.4,1820.3,4.82121491]
[1743804865051,0.76204604,1820.4,1820.3,4.82159296]
[1743804866856,0.76204604,1820.4,1820.3,4.82204696]
[1743804870959,0.76204604,1820.4,1820.3,5.35163282]
[1743804872156,0.76204604,1820.4,1820.3,4.82204696]
[1743804872357,0.76204604,1820.4,1820.3,4.02775916]
[1743804872567,0.76204604,1820.4,1820.3,4.82349425]
[1743804874569,1.86111604,1820.4,1820.3,4.82349425]
[1743804874870,5.06891604,1820.4,1820.3,1.50946425]
[1743804875274,6.46311604,1820.4,1820.3,1.50946425]
[1743804877372,6.46311604,1820.4,1820.3,2.60859425]
[1743804878977,3.96984604,1820.4,1820.3,2.60859425]
[1743804879168,0.00824604,1820.4,1820.3,3.32199425]
[1743804879972,0.00824604,1820.4,1820.3,4.76899425]
[1743804881574,0.00824604,1820.4,1820.3,4.76839395]
[1743804881774,0.00824604,1820.4,1820.3,5.29762438]
[1743804883571,0.00824604,1820.4,1820.3,5.29759142]
[1743804885777,0.00824604,1820.4,1820.3,5.29734216]
[1743804886170,0.00824604,1820.4,1820.3,7.79734216]
[1743804887173,0.7331,1820.8,1820.7,1.09889]
[1743804887376,0.7331,1820.8,1820.7,1.89373725]
[1743804887775,2.2412,1820.8,1820.7,2.60746641]
[1743804888772,2.2412,1820.8,1820.7,3.31506641]
[1743804889070,0.7331,1820.8,1820.7,3.31506641]
[1743804889276,3.2078,1820.9,1820.8,1.09883]
[1743804889471,3.2078,1820.9,1820.8,3.39847725]
[1743804889871,3.2078,1820.9,1820.8,4.11220641]
[1743804890273,0.7642,1821.1,1821.0,1.09871]
[1743804890480,0.7642,1821.1,1821.0,1.89355725]
[1743804890970,0.7642,1821.1,1821.0,4.12785725]
[1743804891179,0.7642,1821.1,1821.0,4.84158641]
[1743804892179,1.86285,1821.1,1821.0,4.84158641]
[1743804892372,3.26195,1821.1,1821.0,4.84158641]
[1743804892568,3.26195,1821.1,1821.0,2.60728641]
[1743804892875,2.1633,1821.1,1821.0,1.09871]
[1743804893179,2.1633,1821.1,1821.0,1.89142047]
[1743804894078,3.26195,1821.1,1821.0,1.89142047]
[1743804894472,1.09871,1821.0,1820.9,1.09872]
[1743804894776,1.5391,1821.0,1820.9,1.89108848]
[1743804895171,3.972,1821.1,1821.0,1.09871]
[1743804895380,3.972,1821.1,1821.0,3.27611]
[1743804895582,6.60975,1821.1,1821.0,3.27611]
[1743804895772,6.60975,1821.1,1821.0,2.57291]
[1743804896172,5.5111,1821.1,1821.0,2.57291]
[1743804896781,5.5111,1821.1,1821.0,3.36491548]
[1743804897080,5.5111,1821.1,1821.0,2.57291]
[1743804897280,5.5111,1821.1,1821.0,3.3649259]
[1743804897582,5.5111,1821.1,1821.0,2.57291]
[1743804898482,6.60975,1821.1,1821.0,2.57291]
[1743804898680,5.5111,1821.1,1821.0,2.57291]
[1743804899080,6.60975,1821.1,1821.0,2.57291]
[1743804899275,6.60975,1821.1,1821.0,1.09871]
[1743804900479,1.09871,1821.0,1820.9,1.09873]
[1743804900686,2.54051,1821.0,1820.9,1.09873]
[1743804901780,1.4418,1821.0,1820.9,1.09873]
[1743804902482,7.512,1821.1,1821.0,1.09871]
[1743804902679,10.14245,1821.1,1821.0,2.52031]
[1743804904481,10.14245,1821.1,1821.0,1.09871]
[1743804904780,1.09871,1821.0,1820.9,1.09872]
[1743804905079,2.63056,1821.0,1820.9,1.09877]
[1743804905386,1.5318,1821.0,1820.9,1.09877]
[1743804905881,2.63051,1821.0,1820.9,1.09877]
[1743804907388,2.63051,1821.0,1820.9,1.89167144]
[1743804907685,2.63051,1821.0,1820.9,2.60437913]
[1743804909088,2.63051,1821.0,1820.9,4.04497913]
[1743804911784,1.09883,1820.8,1820.7,0.00824605]
[1743804911990,4.30663,1820.8,1820.7,0.00824605]
[1743804912189,6.56933,1820.8,1820.7,1.10713605]
[1743804912783,6.56933,1820.8,1820.7,0.00824605]
[1743804913388,10.10833,1820.8,1820.7,0.00824605]
[1743804915187,10.10833,1820.8,1820.7,1.10713605]
[1743804915496,8.58493,1820.8,1820.7,1.10713605]
[1743804917696,10.09133,1820.8,1820.7,1.10713605]
[1743804918799,7.84563,1820.8,1820.7,1.10713605]
[1743804919097,3.539,1820.8,1820.7,1.10713605]
[1743804919296,4.63783,1820.8,1820.7,2.53763605]
[1743804921598,3.539,1820.8,1820.7,2.53763605]
[1743804921799,7.84563,1820.8,1820.7,2.53763605]
[1743804923600,3.539,1820.8,1820.7,2.53763605]
[1743804923795,3.539,1820.8,1820.7,3.32610758]
[1743804923994,3.539,1820.8,1820.7,4.03486002]
[1743804924896,1.09878,1820.9,1820.8,1.09883]
[1743804925095,10.08825,1821.0,1820.9,1.09877]
[1743804925296,10.08825,1821.0,1820.9,1.88724153]
[1743804925490,6.54925,1821.0,1820.9,3.42634153]
[1743804925700,10.08825,1821.0,1820.9,4.13509397]
[1743804926004,3.9553,1821.0,1820.9,4.13509397]
[1743804926598,1.84621,1821.0,1820.9,4.13509397]
[1743804927303,5.05401,1821.0,1820.9,4.13509397]
[1743804928703,6.57091,1821.0,1820.9,4.13509397]
[1743804929097,6.57091,1821.0,1820.9,1.49722397]
[1743804929297,6.57091,1821.0,1820.9,0.70875244]
[1743804929498,6.57091,1821.0,1820.8,1.09878]
[1743804929499,1.09877,1820.9,1820.8,1.09878]
[1743804929698,3.37067,1820.9,1820.8,0.78874049]
[1743804929904,3.37067,1820.9,1820.8,1.49777318]
[1743804930204,3.37067,1820.9,1820.8,0.70903269]
[1743804930604,1.09883,1820.8,1820.7,1.10710605]
[1743804930806,6.14533,1820.8,1820.7,1.89598095]
[1743804931500,6.14533,1820.8,1820.7,2.60503437]
[1743804933805,6.14533,1820.8,1820.7,1.50614437]
[1743804934002,6.14533,1820.8,1820.7,2.60503437]
[1743804934202,3.539,1820.8,1820.7,3.99373437]
[1743804934708,1.09882,1820.9,1820.7,3.99373437]
[1743804934709,4.63782,1820.9,1820.8,1.09883]
[1743804934910,4.63782,1820.9,1820.8,4.0098749]
[1743804935108,4.63782,1820.9,1820.8,2.9110449]
[1743804935312,1.09883,1820.8,1820.7,0.71729947]
[1743804935513,3.34043,1820.8,1820.7,2.60510216]
[1743804935911,3.34043,1820.8,1820.7,1.50621216]
[1743804936412,3.34043,1820.8,1820.7,0.79715874]
[1743804936607,3.34043,1820.8,1820.7,0.79721879]
[1743804936811,2.58243,1820.8,1820.7,1.89610879]
[1743804937505,2.58243,1820.8,1820.7,2.64950879]
[1743804937909,5.79023,1820.8,1820.7,2.64950879]
[1743804938213,5.79023,1820.8,1820.7,2.25979229]
[1743804938514,5.79023,1820.8,1820.7,2.25980314]
[1743804939806,5.79023,1820.8,1820.7,1.50640314]
[1743804941110,5.79023,1820.8,1820.7,2.60529314]
[1743804941414,5.79023,1820.8,1820.7,2.97530314]
[1743804942112,5.79023,1820.8,1820.7,4.07440266]
[1743804942412,5.79023,1820.8,1820.7,2.97551266]
[1743804943004,5.79023,1820.8,1820.7,0.71741955]
[1743804944317,8.29023,1820.8,1820.7,0.00824605]
[1743804945322,8.29023,1820.8,1820.7,1.10713605]
[1743804945510,5.79023,1820.8,1820.7,1.89570222]
[1743804945715,5.79023,1820.8,1820.7,1.10713605]
[1743804946021,5.79023,1820.8,1820.7,0.79680387]
[1743804946520,5.79023,1820.8,1820.7,0.00824605]
[1743804947319,1.09929,1820.1,1819.9,3.2078]
[1743804947514,3.539,1820.3,1820.0,1.55540376]
[1743804947723,4.63815,1820.3,1820.2,1.09919]
[1743804948020,4.63815,1820.3,1820.2,0.78860376]
[1743804948222,4.63815,1820.3,1820.2,2.94296167]
[1743804949420,4.63815,1820.3,1820.2,4.04215167]
[1743804949717,4.30691,1820.4,1820.2,4.79905167]
[1743804949914,3.2078,1820.4,1820.3,3.37703376]
[1743804950114,4.30687,1820.4,1820.3,4.82179167]
[1743804950308,4.30687,1820.4,1820.3,3.72266167]
[1743804951117,1.09907,1820.4,1820.3,3.72266167]
[1743804951519,1.09907,1820.4,1820.3,3.71783571]
[1743804952723,4.63807,1820.5,1820.3,3.71783571]
[1743804952923,4.63807,1820.5,1820.4,2.2726778]
[1743804953322,4.63807,1820.5,1820.4,2.27260612]
[1743804953522,4.63807,1820.5,1820.4,2.98136403]
[1743804954024,4.63801,1820.5,1820.4,4.08043403]
[1743804954419,4.63801,1820.5,1820.4,2.98136403]
[1743804955325,4.63801,1820.5,1820.4,4.08043403]
[1743804955528,4.63801,1820.5,1820.4,2.98136403]
[1743804956926,4.63801,1820.5,1820.4,2.98149833]
[1743804957929,4.63801,1820.5,1820.4,4.08073976]
[1743804958225,4.63801,1820.5,1820.4,2.98166976]
[1743804958728,4.63801,1820.5,1820.4,4.08073976]
[1743804959329,3.539,1820.5,1820.4,4.08073976]
[1743804960224,3.2078,1820.6,1820.5,1.09901]
[1743804960521,3.2078,1820.6,1820.5,3.35712185]
[1743804960831,3.2078,1820.6,1820.5,4.76877986]
[1743804961622,5.36988,1820.8,1820.5,3.66976986]
[1743804961831,1.09889,1820.7,1820.6,3.03721195]
[1743804962023,1.09889,1820.7,1820.6,2.60801195]
[1743804962324,1.09889,1820.7,1820.6,3.31677986]
[1743804962827,1.09889,1820.7,1820.6,3.31670856]
[1743804963626,5.6856,1820.8,1820.7,1.09889]
[1743804964332,5.6856,1820.8,1820.7,1.88271669]
[1743804964730,4.63783,1820.8,1820.7,1.88273226]
[1743804965029,4.63783,1820.8,1820.7,2.59073287]
[1743804965624,4.63783,1820.8,1820.7,2.59071588]
[1743804967624,4.63783,1820.8,1820.7,2.59071325]
[1743804968533,4.63783,1820.8,1820.7,1.80689061]
[1743804968731,1.09889,1820.7,1820.6,1.8241]
[1743804968933,5.03419,1820.7,1820.6,2.60798082]
[1743804969528,5.03419,1820.7,1820.6,3.31610631]
[1743804970437,4.63788,1820.8,1820.7,1.09889]
[1743804970630,4.63788,1820.8,1820.7,1.88277082]
[1743804970837,4.63788,1820.8,1820.7,2.59089631]
[1743804971932,3.539,1820.8,1820.7,2.59078284]
[1743804972635,4.63783,1820.8,1820.7,2.59078284]
[1743804973233,4.63783,1820.8,1820.7,0.70812549]
[1743804973437,6.12253,1820.8,1820.7,1.09889]
[1743804974737,1.09889,1820.7,1820.6,3.24981]
[1743804975036,6.55089,1820.7,1820.6,4.03363688]
[1743804975833,6.55089,1820.7,1820.6,4.7416375]
[1743804976734,6.55089,1820.7,1820.6,4.7416008]
[1743804976937,5.452,1820.7,1820.6,4.7416008]
[1743804977138,3.2078,1820.7,1820.6,4.7416008]
[1743804977342,4.63785,1820.8,1820.7,1.09889]
[1743804977638,4.63785,1820.8,1820.7,3.29038018]
[1743804978339,4.63785,1820.8,1820.7,3.9983808]
[1743804978732,4.63785,1820.8,1820.7,3.99855239]
[1743804982340,4.63785,1820.8,1820.7,3.99877632]
[1743804983342,7.84565,1820.8,1820.7,3.99877632]
[1743804984237,7.84565,1820.8,1820.7,3.99879974]
[1743804984436,4.63785,1820.8,1820.7,3.99879974]
[1743804986043,4.63785,1820.8,1820.7,3.99848734]
[1743804986442,4.63785,1820.8,1820.7,2.89959734]
[1743804986643,4.63785,1820.8,1820.7,3.99865065]
[1743804986644,6.92305,1820.8,1820.7,3.99865065]
[1743804987943,6.92305,1820.8,1820.7,3.99858908]
[1743804992851,6.15745,1820.8,1820.7,3.99858908]
[1743804993551,6.15745,1820.8,1820.7,3.99890929]
[1743804994245,1.5196,1820.8,1820.7,3.99890929]
[1743804994447,0.00824604,1820.9,1820.8,1.09883]
[1743804994650,0.00824604,1820.9,1820.8,4.12334867]
[1743804994950,0.00824604,1820.9,1820.8,4.83134929]
[1743804995953,1.10701604,1820.9,1820.8,4.83134929]
[1743804996148,1.10701604,1820.9,1820.8,4.07724929]
[1743804996544,1.85191604,1820.9,1820.8,2.97841929]
[1743804996751,5.05971604,1820.9,1820.8,2.97841929]
[1743804996947,5.81191604,1820.9,1820.8,2.97841929]
[1743804997254,5.81191604,1820.9,1820.8,2.27041867]
[1743804997551,5.81191604,1820.9,1820.8,2.97844421]
[1743804998148,9.34891604,1820.9,1820.8,2.97844421]
[1743804998349,9.34891604,1820.9,1820.8,4.07727421]
[1743804999049,9.34891604,1820.9,1820.8,4.07677069]
[1743804999749,9.34891604,1820.9,1820.8,4.07677632]
[1743805000346,8.59671604,1820.9,1820.8,4.07677632]
[1743805000748,0.00824604,1820.9,1820.8,4.07677632]
[1743805000954,0.00824604,1820.9,1820.8,4.07659099]
[1743805003960,0.00824604,1820.9,1820.8,6.57659099]
[1743805004658,0.00824604,1820.9,1820.8,6.57615211]
[1743805005157,0.00824604,1820.9,1820.8,4.07615211]
[1743805006054,0.00824604,1820.9,1820.8,4.77125211]
[1743805008360,1.45144604,1820.9,1820.8,4.77138862]
[1743805009263,0.00824604,1820.9,1820.8,4.77138862]
[1743805012069,0.00824604,1820.9,1820.8,4.77129364]
[1743805015477,0.00824604,1820.9,1820.8,3.98805554]
[1743805015672,0.00824604,1820.9,1820.8,3.28003]
[1743805016376,0.00824604,1820.9,1820.8,4.77067926]
[1743805019578,0.00824604,1820.9,1820.8,4.77084162]
[1743805022882,0.00824604,1820.9,1820.8,3.98748657]
[1743805023784,0.00824604,1820.9,1820.8,3.29238657]
[1743805023982,0.00824604,1820.9,1820.8,4.07617874]
[1743805024187,1.40614604,1820.9,1820.8,3.29238657]
[1743805024677,1.40614604,1820.9,1820.8,4.07631271]
[1743805025082,1.40614604,1820.9,1820.8,1.80628657]
[1743805025678,1.40614604,1820.9,1820.8,2.59021962]
[1743805027182,1.40614604,1820.9,1820.8,4.04661962]
[1743805030877,0.00824604,1820.9,1820.8,4.04661962]
[1743805031580,6.7438,1821.1,1821.0,1.09871]
[1743805031784,6.7438,1821.1,1821.0,1.88293161]
[1743805032284,6.7438,1821.1,1821.0,4.06028818]
[1743805033487,6.7438,1821.1,1821.0,3.27606657]
[1743805033785,6.7438,1821.1,1821.0,4.06020332]
[1743805034286,3.2078,1821.1,1821.0,4.06020332]
[1743805036283,5.0182,1821.2,1821.1,1.09865]
[1743805036479,8.226,1821.2,1821.1,4.09948675]
[1743805036681,8.226,1821.2,1821.1,4.80694332]
[1743805037788,9.32459,1821.2,1821.1,4.80694332]
[1743805038988,8.226,1821.2,1821.1,4.80694332]
[1743805039181,8.226,1821.2,1821.1,4.80670694]
[1743805041186,9.32459,1821.2,1821.1,4.80670694]
[1743805041590,8.226,1821.2,1821.1,4.80670694]
[1743805042285,5.0182,1821.2,1821.1,4.80670694]
[1743805042485,8.226,1821.2,1821.1,4.80670694]
[1743805042686,9.32459,1821.2,1821.1,4.80670694]
[1743805043792,9.32459,1821.2,1821.1,2.59000694]
[1743805043988,9.32459,1821.2,1821.1,1.88255037]
[1743805044793,9.32459,1821.2,1821.1,1.8825058]
[1743805045195,8.226,1821.2,1821.1,3.3897058]
[1743805045394,8.226,1821.2,1821.1,4.09774367]
[1743805046896,9.32459,1821.2,1821.1,4.09774367]
[1743805050297,9.32459,1821.2,1821.1,4.09759332]
[1743805052198,9.32459,1821.2,1821.1,4.09764543]
[1743805053193,9.32459,1821.2,1821.1,2.59044543]
[1743805053701,9.32459,1821.2,1821.1,1.88240756]
[1743805053887,9.32459,1821.2,1821.1,1.88247192]
[1743805054898,9.32459,1821.2,1821.1,2.59046965]
[1743805055501,9.32459,1821.2,1821.1,4.00256965]
[1743805055902,9.32459,1821.2,1821.1,4.00254781]
[1743805057402,6.11679,1821.2,1821.1,4.00254781]
[1743805057603,9.32459,1821.2,1821.1,4.00254781]
[1743805059700,9.32459,1821.2,1821.1,4.00286316]
[1743805061806,9.32459,1821.2,1821.1,2.90421316]
[1743805062011,9.32459,1821.2,1821.1,1.49211316]
[1743805062211,9.32459,1821.2,1821.1,0.70799773]
[1743805062405,9.32463,1821.2,1821.1,1.8830055]
[1743805063511,9.32463,1821.2,1821.1,1.88296901]
[1743805063717,9.32463,1821.2,1821.1,2.59140185]
[1743805064406,9.32463,1821.2,1821.1,4.02210185]
[1743805066511,6.11683,1821.2,1821.1,4.02210185]
[1743805070108,6.11683,1821.2,1821.1,4.77010185]
[1743805073918,6.11683,1821.2,1821.1,4.02210185]
[1743805074323,6.11683,1821.2,1821.1,1.49275185]
[1743805074514,6.11683,1821.2,1821.1,2.59201895]
[1743805074716,6.11683,1821.2,1821.1,1.88357089]
[1743805075116,6.11683,1821.2,1821.1,0.78492089]
[1743805075321,6.11683,1821.2,1821.1,1.88357089]
[1743805075830,6.11683,1821.2,1821.1,2.59256907]
[1743805076322,6.11683,1821.2,1821.1,1.49391907]
[1743805076512,6.11683,1821.2,1821.1,1.49389641]
[1743805077123,6.11683,1821.2,1821.1,2.59254641]
[1743805077925,6.11683,1821.2,1821.1,1.88354823]
[1743805078725,6.11683,1821.2,1821.1,0.78489823]
[1743805078922,1.09865,1821.1,1821.0,1.09866]
[1743805079221,6.54525,1821.1,1821.0,2.5925213]
[1743805081225,6.54525,1821.1,1821.0,4.0991213]
[1743805084228,3.2078,1821.1,1821.0,4.0991213]
[1743805084429,3.534,1821.1,1821.0,4.8681213]
[1743805085523,4.63265,1821.1,1821.0,4.8681213]
[1743805085822,4.63264,1821.2,1821.1,1.09865]
[1743805086028,4.63264,1821.2,1821.1,3.9999113]
[1743805086527,4.63264,1821.2,1821.1,3.99963197]
[1743805087729,3.534,1821.2,1821.1,3.99963197]
[1743805088728,3.9736,1821.3,1821.2,1.09859]
[1743805088933,4.2326,1821.5,1821.4,1.09847]
[1743805089232,4.30601,1821.9,1821.8,1.09821]
[1743805089436,7.84001,1821.9,1821.8,1.88191529]
[1743805089725,7.84001,1821.9,1821.8,1.09821]
[1743805089931,1.09824,1821.8,1821.7,1.09824]
[1743805090733,7.84001,1821.9,1821.8,1.09823]
[1743805092235,7.84001,1821.9,1821.8,1.79763]
[1743805093729,1.09823,1821.8,1821.7,2.59374]
[1743805093932,1.80463,1821.8,1821.7,2.59374]
[1743805094225,3.24133,1821.8,1821.7,2.59374]
[1743805094736,0.7064,1821.8,1821.7,2.59374]
[1743805096433,1.80463,1821.8,1821.7,2.59374]
[1743805098638,3.21363,1821.8,1821.7,2.59374]
[1743805100339,3.21363,1821.8,1821.7,1.4955]
[1743805100732,3.21363,1821.8,1821.7,2.59379]
[1743805103637,1.09829,1821.7,1821.6,0.6994]
[1743805103833,1.09829,1821.7,1821.6,2.1578]
[1743805104137,5.81939,1821.7,1821.6,3.25615]
[1743805104942,4.30609,1821.7,1821.6,3.25615]
[1743805109746,1.09829,1821.7,1821.6,3.25615]
[1743805110247,6.49288,1821.8,1821.7,1.09829]
[1743805110447,6.49288,1821.8,1821.7,2.59419]
[1743805111034,1.09822,1821.9,1821.8,1.09818]
[1743805111243,1.09822,1821.9,1821.8,3.36318]
[1743805114647,1.09822,1821.9,1821.8,2.59408]
[1743805114849,2.52232,1821.9,1821.8,2.59408]
[1743805117449,5.73012,1821.9,1821.8,2.59408]
[1743805120052,2.52232,1821.9,1821.8,2.59408]
[1743805121358,2.52232,1821.9,1821.8,1.4959]
[1743805121660,3.27632,1821.9,1821.8,1.4959]
[1743805122156,3.27632,1821.9,1821.8,2.59413]
[1743805123053,3.27632,1821.9,1821.8,1.4959]
[1743805127859,3.27632,1821.9,1821.7,1.09824]
[1743805127860,1.09823,1821.8,1821.7,1.09824]
[1743805128060,6.47433,1821.8,1821.7,1.88133455]
[1743805128361,6.47433,1821.8,1821.7,1.09824]
[1743805128561,6.47433,1821.8,1821.7,2.52124]
[1743805129865,6.47433,1821.8,1821.7,3.30428655]
[1743805132762,6.47433,1821.8,1821.7,2.20604655]
[1743805133064,1.09829,1821.7,1821.6,1.09832]
[1743805133265,3.18589,1821.7,1821.6,1.88138831]